fUSD/lending_fUSD_20250708
["ID","MTS","AMOUNT","RATE_DAILY","PERIOD"]
[370327063,1751961036308,-460.0,0.00028389,3]
[370327064,1751961036318,-796.0,0.00028389,3]
[370327065,1751961036327,-460.0,0.00028389,3]
[370327066,1751961036337,-1659.09,0.00028389,3]
[370327067,1751961036346,-460.0,0.00028389,3]
[370327068,1751961036357,-460.0,0.00028389,3]
[370327069,1751961036367,-1321.97,0.00028389,3]
[370327070,1751961036376,-499.12,0.00028389,3]
[370327071,1751961036386,-460.0,0.00028389,3]
[370327072,1751961036395,-460.0,0.00028389,3]
[370327073,1751961036406,-650.52,0.00028389,3]
[370327074,1751961036416,-460.0,0.00028389,3]
[370327075,1751961036425,-608.24,0.00028389,3]
[370327076,1751961036434,-409.04402309,0.00028389,3]
[370327077,1751961036444,-397.28680302,0.00028389,3]
[370327078,1751961036453,-460.0,0.00028389,3]
[370327079,1751961036463,-681.51,0.00028389,3]
[370327080,1751961036473,-460.0,0.00028389,3]
[370327081,1751961036483,-536.17707165,0.00028389,3]
[370327082,1751961036493,-460.0,0.00028389,3]
[370327083,1751961036503,-460.0,0.00028389,3]
[370327084,1751961036513,-460.0,0.00028389,3]
[370327085,1751961036523,-460.0,0.00028389,3]
[370327086,1751961036533,-460.0,0.00028389,3]
[370327087,1751961036543,-460.0,0.00028389,3]
[370327088,1751961036554,-460.0,0.00028389,3]
[370327089,1751961036563,-460.0,0.00028389,3]
[370327090,1751961036573,-460.0,0.00028389,3]
[370327091,1751961036583,-460.0,0.00028389,3]
[370327092,1751961036593,-460.0,0.00028389,3]
[370327093,1751961036604,-518.72,0.00028389,3]
[370327094,1751961036614,-460.0,0.00028389,3]
[370327095,1751961036624,-460.0,0.00028389,3]
[370327096,1751961036635,-609.36,0.00028389,3]
[370327097,1751961036645,-242.46676191,0.00028389,3]
[370327101,1751961038275,-150.0,0.00028384,2]
[370327102,1751961038285,-217.53323809,0.00028389,3]
[370327103,1751961038295,-60.71930138,0.00028389,3]
[370327104,1751961038308,-255.16541237,0.00028389,3]
[370327105,1751961038320,-144.11528625,0.00028389,3]
[370327106,1751961038329,-285.33955249,0.00028389,3]
[370327107,1751961038341,-1245.91044751,0.00028389,3]
[370327108,1751961038351,-370.45585472,0.00028389,3]
[370327146,1751961040696,-460.0,0.00028378,3]
[370327147,1751961040706,-272.52936965,0.00028378,3]
[370327148,1751961040790,-5000.0,0.00028298,2]
[370327149,1751961040800,-1714.00063035,0.00028378,3]
[370327150,1751961040810,-661.41,0.00028388,3]
[370327151,1751961040819,-460.0,0.00028388,3]
[370327152,1751961040828,-2053.63414528,0.00028389,3]
[370327153,1751961040839,-3160.96,0.00028389,3]
[370327154,1751961040848,-1483.71,0.00028389,3]
[370327155,1751961040858,-394.65652252,0.00028389,2]
[370327156,1751961040867,-1012.6,0.00028389,3]
[370327157,1751961040877,-1103.29,0.00028389,3]
[370327158,1751961040886,-1817.84,0.00028389,3]
[370327159,1751961040896,-690.9,0.00028389,3]
[370327160,1751961040905,-460.0,0.00028389,3]
[370327161,1751961040915,-8816.29,0.00028389,3]
[370327162,1751961040924,-460.0,0.00028389,3]
[370327163,1751961040933,-460.0,0.00028389,3]
[370327164,1751961040943,-848.67387598,0.00028389,3]
[370327165,1751961040966,-276.36612402,0.00028389,3]
[370327166,1751961040975,-161.619747,0.00028389,3]
[370327167,1751961040984,-10.79567892,0.00028389,3]
[370327168,1751961040997,-671.70432108,0.00028389,3]
[370327169,1751961041007,-14.3695878,0.00028389,3]
[370327176,1751961043224,-166.94,0.00027934,2]
[370327177,1751961043234,-136.4411102,0.00028389,3]
[370327178,1751961043244,-160.543999,0.00028389,3]
[370327179,1751961043254,-1417.53,0.00028389,3]
[370327180,1751961043264,-1420.5,0.00028389,3]
[370327181,1751961043274,-533.64,0.00028389,3]
[370327182,1751961043283,-668.32,0.00028389,3]
[370327183,1751961043295,-541.34,0.00028389,3]
[370327184,1751961043305,-393.22796839,0.00028389,3]
[370327185,1751961043322,-66.77203161,0.00028389,3]
[370327186,1751961043332,-787.24421778,0.00028389,3]
[370327187,1751961043477,-1556.15578222,0.00028389,3]
[370327188,1751961043488,-822.23,0.00028389,3]
[370327189,1751961043498,-460.0,0.00028389,3]
[370327190,1751961043507,-493.54,0.00028389,3]
[370327191,1751961043517,-2216.98,0.00028389,3]
[370327192,1751961043527,-1338.12,0.00028389,3]
[370327193,1751961043539,-3969.04,0.00028389,3]
[370327194,1751961043549,-460.0,0.00028389,3]
[370327195,1751961043558,-1045.08,0.00028389,3]
[370327196,1751961043568,-1409.53,0.00028389,3]
[370327197,1751961043578,-1084.18,0.00028389,3]
[370327198,1751961043588,-460.0,0.00028389,3]
[370327199,1751961043597,-460.0,0.00028389,3]
[370327200,1751961043607,-460.0,0.00028389,3]
[370327201,1751961043617,-460.0,0.00028389,3]
[370327202,1751961043626,-733.56,0.00028389,3]
[370327203,1751961043636,-1303.53,0.00028389,3]
[370327204,1751961043646,-1695.76,0.00028389,3]
[370327205,1751961043656,-460.0,0.00028389,3]
[370327206,1751961043666,-460.0,0.00028389,3]
[370327207,1751961043676,-460.0,0.00028389,3]
[370327208,1751961043685,-672.78,0.00028389,3]
[370327209,1751961043695,-460.0,0.00028389,3]
[370327210,1751961043705,-1074.34,0.00028389,3]
[370327211,1751961043714,-3580.26,0.00028389,3]
[370327212,1751961043725,-460.0,0.00028389,3]
[370327213,1751961043734,-460.0,0.00028389,3]
[370327214,1751961043744,-568.04,0.00028389,3]
[370327215,1751961043754,-1456.62,0.00028389,3]
[370327216,1751961043764,-7254.05,0.00028389,3]
[370327217,1751961043775,-928.17,0.00028389,3]
[370327218,1751961043784,-648.46,0.00028389,3]
[370327219,1751961043794,-3579.01,0.00028389,3]
[370327220,1751961043804,-760.94,0.00028389,3]
[370327221,1751961043814,-649.22,0.00028389,3]
[370327222,1751961043823,-1280.9,0.00028389,3]
[370327223,1751961043833,-787.62,0.00028389,3]
[370327224,1751961043843,-596.92,0.00028389,3]
[370327225,1751961043853,-460.0,0.00028389,3]
[370327226,1751961043863,-41012.12529261,0.00028389,2]
[370327227,1751961043876,-1092.48670783,0.00028389,2]
[370327228,1751961043888,-2051.95008176,0.00028389,2]
[370327229,1751961043898,-6524.8861423,0.00028389,2]
[370327230,1751961043907,-210.34477682,0.0002839,3]
[370327231,1751961043917,-14718.8540274,0.0002839,2]
[370327232,1751961043928,-7813.41845049,0.00028395,2]
[370327234,1751961044063,-21081.41410794,0.00028395,2]
[370327235,1751961044076,-3579.46844703,0.00028395,2]
[370327236,1751961044121,-2226.37014015,0.00028395,2]
[370327237,1751961046206,-318.99724302,0.00028378,3]
[370327238,1751961046291,-287.54806406,0.00028378,3]
[370328278,1751961361058,182.62,0.00026933,120]
[370328280,1751961406651,162.73592879,0.00016712,2]
[370328293,1751962167058,150.18,0.00013699,2]
[370328295,1751962231464,-250.0,0.00015,2]
[370328296,1751962231473,-864.428,0.000165,5]
[370328297,1751962231572,-1135.572,0.000165,5]
[370328298,1751962231582,-62.25407121,0.00016712,2]
[370328299,1751962231592,-300.0,0.00017,2]
[370328300,1751962231602,-150.0,0.000181,2]
[370328301,1751962231612,-7.93787719,0.0001859,2]
[370328302,1751962231625,-142.06212281,0.0001859,2]
[370328303,1751962231635,-150.0,0.0001907,2]
[370328304,1751962231645,-90.67683397,0.00019178,2]
[370328305,1751962231657,-65.91016603,0.00019178,2]
[370328306,1751962231667,-150.0,0.0001956,2]
[370328307,1751962231677,-150.0,0.0002004,2]
[370328308,1751962231687,-157.5,0.00020288,2]
[370328309,1751962231697,-150.0,0.0002053,2]
[370328310,1751962231706,-150.18,0.00020951,2]
[370328311,1751962231716,-150.0,0.0002101,2]
[370328312,1751962231726,-12.62403387,0.000215,2]
[370328313,1751962231738,-137.37596613,0.000215,2]
[370328314,1751962231748,-220.0,0.0002199,2]
[370328315,1751962231758,-519.0,0.0002238,2]
[370328316,1751962231768,-59.22210787,0.00022839,2]
[370328317,1751962231779,-1140.77789213,0.00022839,2]
[370328318,1751962231789,-151.0,0.0002284,2]
[370328319,1751962231799,-199.09212493,0.0002284,2]
[370328320,1751962231808,-151.0,0.0002284,2]
[370328321,1751962231818,-151.0,0.0002284,2]
[370328322,1751962231827,-151.0,0.0002284,2]
[370328323,1751962231836,-151.0,0.0002284,2]
[370328324,1751962231845,-1008.61871146,0.00022854,2]
[370328325,1751962231869,-541.65929644,0.00022854,2]
[370328326,1751962231881,-449.91128367,0.00022854,2]
[370328327,1751962231893,-630.0827751,0.00022854,2]
[370328328,1751962231904,-349.86894095,0.00022854,2]
[370328329,1751962231916,-843.2866551,0.00022854,2]
[370328330,1751962231927,-1491.38233728,0.00022854,2]
[370328331,1751962231936,-4705.02,0.00023027,2]
[370328332,1751962231946,-848.32379633,0.000239,10]
[370328333,1751962231955,-170.17,0.00024207,2]
[370328334,1751962231965,-519.0,0.00024261,4]
[370328335,1751962231975,-150.0,0.00024333,2]
[370328336,1751962231984,-200.0,0.00024409,2]
[370328337,1751962231994,-407.73,0.00024455,2]
[370328338,1751962232003,-848.32379613,0.00024521,11]
[370328340,1751962232015,-250.0,0.00024558,2]
[370328342,1751962232027,-6943.53,0.00024595,2]
[370328344,1751962232036,-164.23,0.00024614,2]
[370328345,1751962232045,-161.42,0.0002476,2]
[370328346,1751962232055,-161.42,0.00024781,2]
[370328347,1751962232065,-161.42,0.00024801,2]
[370328348,1751962232074,-161.42,0.00024822,2]
[370328349,1751962232083,-161.42,0.00024843,2]
[370328350,1751962232093,-161.42,0.00024863,2]
[370328351,1751962232102,-161.42,0.00024884,2]
[370328352,1751962232113,-161.42,0.00024904,2]
[370328353,1751962232123,-1680.0,0.00024912,2]
[370328354,1751962232132,-161.42,0.00024925,2]
[370328355,1751962232142,-161.42,0.00024946,2]
[370328356,1751962232151,-161.42,0.00024966,2]
[370328357,1751962232160,-161.42,0.00024987,2]
[370328358,1751962232170,-161.42,0.00025008,2]
[370328359,1751962232179,-848.32379613,0.00025141,12]
[370328360,1751962232189,-150.0,0.00025166,2]
[370328361,1751962232198,-150.82,0.00025173,2]
[370328362,1751962232208,-150.0,0.00025367,2]
[370328363,1751962232217,-150.0,0.00025439,2]
[370328364,1751962232226,-150.82,0.00025745,2]
[370328365,1751962232236,-848.32379613,0.00025762,13]
[370328366,1751962232246,-150.0,0.00025859,2]
[370328367,1751962232255,-154.92087027,0.00025859,2]
[370328369,1751962232264,-500.0,0.00025859,2]
[370328371,1751962232274,-1719.0,0.00025859,2]
[370328373,1751962232284,-150.0,0.00025859,2]
[370328375,1751962232293,-500.0,0.00025859,2]
[370328377,1751962232303,-500.0,0.00025859,2]
[370328378,1751962232313,-493.0,0.00025859,2]
[370328380,1751962232322,-61.12160773,0.00025859,2]
[370328393,1751962233264,-438.87839227,0.00025859,2]
[370328394,1751962233274,-731.0,0.00025859,2]
[370328395,1751962233284,-150.0,0.00025859,2]
[370328396,1751962233293,-150.0,0.00025859,2]
[370328397,1751962233303,-150.0,0.00025859,2]
[370328398,1751962233312,-150.0,0.00025859,2]
[370328399,1751962233322,-150.0,0.00025859,2]
[370328400,1751962233331,-500.0,0.00025859,2]
[370328401,1751962233341,-150.0,0.00025859,2]
[370328402,1751962233350,-655.0,0.00025859,2]
[370328403,1751962233360,-49.27820743,0.00025859,2]
[370328404,1751962233372,-104.81390873,0.00025859,2]
[370328405,1751962233383,-150.0,0.00026053,2]
[370328406,1751962233392,-29.41749129,0.00026053,2]
[370328407,1751962233404,-120.58250871,0.00026053,2]
[370328408,1751962233414,-1000.0,0.00026121,2]
[370328409,1751962233424,-604.75913005,0.00026133,2]
[370328410,1751962233434,-1719.0,0.00026133,2]
[370328411,1751962233443,-192.71294229,0.00026133,2]
[370328412,1751962233454,-500.0,0.00026133,2]
[370328413,1751962233463,-500.0,0.00026133,2]
[370328414,1751962233473,-493.0,0.00026133,2]
[370328415,1751962233482,-500.0,0.00026133,2]
[370328416,1751962233492,-731.0,0.00026133,2]
[370328417,1751962233502,-151.25138377,0.00026133,2]
[370328418,1751962233512,-150.0,0.00026133,2]
[370328419,1751962233522,-150.0,0.00026133,2]
[370328420,1751962233531,-500.0,0.00026133,2]
[370328421,1751962233541,-655.0,0.00026133,2]
[370328422,1751962233551,-519.0,0.00026142,7]
[370328423,1751962233561,-150.0,0.0002616,2]
[370328424,1751962233571,-150.82,0.00026317,2]
[370328425,1751962233582,-848.32379613,0.00026383,15]
[370328426,1751962233591,-1719.0,0.00026407,2]
[370328427,1751962233601,-500.0,0.00026407,2]
[370328428,1751962233611,-500.0,0.00026407,2]
[370328429,1751962233620,-493.0,0.00026407,2]
[370328430,1751962233631,-500.0,0.00026407,2]
[370328431,1751962233641,-731.0,0.00026407,2]
[370328432,1751962233651,-150.0,0.00026407,2]
[370328433,1751962233660,-150.0,0.00026407,2]
[370328434,1751962233670,-500.0,0.00026407,2]
[370328435,1751962233680,-655.0,0.00026407,2]
[370328436,1751962233691,-934.73437348,0.00026421,2]
[370328437,1751962233703,-576.2079772,0.00026421,2]
[370328438,1751962233715,-449.67,0.00026421,2]
[370328439,1751962233754,-926.90764932,0.00026421,2]
[370328440,1751962233764,-150.0,0.00026422,2]
[370328441,1751962233775,-150.0,0.00026648,2]
[370328442,1751962233785,-738.95614301,0.00026681,2]
[370328445,1751962237619,-980.04385699,0.00026681,2]
[370328446,1751962237628,-395.35402879,0.00026681,2]
[370328447,1751962237638,-500.0,0.00026681,2]
[370328448,1751962237648,-493.0,0.00026681,2]
[370328449,1751962237659,-500.0,0.00026681,2]
[370328450,1751962237668,-731.0,0.00026681,2]
[370328451,1751962237677,-150.0,0.00026681,2]
[370328452,1751962237686,-150.0,0.00026681,2]
[370328453,1751962237696,-500.0,0.00026681,2]
[370328454,1751962237705,-655.0,0.00026681,2]
[370328455,1751962237715,-112.69097053,0.00026783,2]
[370328456,1751962237731,-724.40117001,0.00026783,2]
[370328457,1751962237741,-487.21975195,0.00026808,2]
[370328458,1751962237753,-512.78024805,0.00026808,2]
[370328459,1751962237763,-150.0,0.00026858,2]
[370328460,1751962237772,-150.0,0.00026878,2]
[370328461,1751962237782,-150.82,0.00026889,2]
[370328462,1751962237792,-150.0,0.00026891,2]
[370328463,1751962237801,-150.0,0.0002693,2]
[370328464,1751962237811,-701.70402618,0.00026933,2]
[370328465,1751962237823,-63.84597382,0.00026933,2]
[370328466,1751962237833,-1701.95050816,0.00026955,2]
[370328467,1751962238006,-203.5675578,0.00016612,2]
[370328468,1751962238016,-140.5593192,0.00026921,2]
[370328469,1751962238104,-9.4406808,0.00026921,2]
[370328470,1751962238115,-17.04949184,0.00026955,2]
[370328471,1751962238126,-500.0,0.00026955,2]
[370328472,1751962238136,-493.0,0.00026955,2]
[370328473,1751962238144,-402.07729009,0.00026955,2]
[370328474,1751962238156,-97.92270991,0.00026955,2]
[370328475,1751962238166,-731.0,0.00026955,2]
[370328476,1751962238175,-252.82998254,0.00026955,2]
[370328477,1751962238185,-250.0,0.00026955,2]
[370328478,1751962238195,-500.0,0.00026955,2]
[370328479,1751962238204,-378.23082881,0.00026955,2]
[370328480,1751962238217,-276.76917119,0.00026955,2]
[370328481,1751962238229,-150.0,0.00026989,2]
[370328482,1751962238241,-869.23694692,0.00027,2]
[370328485,1751962238279,-130.76305308,0.00027,2]
[370328486,1751962238288,-148.00943022,0.00027,2]
[370328487,1751962238300,-851.99056978,0.00027,2]
[370328488,1751962238310,-300.0,0.00027,2]
[370328489,1751962238319,-151.0,0.00027,2]
[370328491,1751962238328,-500.0,0.00027,2]
[370328492,1751962238339,-500.0,0.00027,2]
[370328493,1751962238349,-215.16643021,0.00027,2]
[370328494,1751962238361,-284.83356979,0.00027,2]
[370328495,1751962238372,-500.0,0.00027,2]
[370328496,1751962238384,-500.0,0.00027,2]
[370328497,1751962238393,-500.0,0.00027,2]
[370328499,1751962238402,-500.0,0.00027,2]
[370328500,1751962238411,-500.0,0.00027,2]
[370328502,1751962238420,-343.82029693,0.00027,2]
[370328503,1751962238430,-207.4,0.00027,2]
[370328504,1751962238440,-151.0,0.00027,2]
[370328505,1751962238449,-151.0,0.00027,2]
[370328506,1751962238458,-151.0,0.00027,2]
[370328507,1751962238468,-300.0,0.00027,2]
[370328509,1751962238478,-400.0,0.00027,2]
[370328510,1751962238486,-848.32379613,0.00027003,16]
[370328511,1751962238495,-150.0,0.00027031,2]
[370328512,1751962238504,-150.0,0.00027046,2]
[370328513,1751962238514,-150.0,0.00027058,2]
[370328514,1751962238523,-150.0,0.0002707,2]
[370328515,1751962238533,-150.0,0.00027109,2]
[370328516,1751962238543,-150.0,0.00027128,2]
[370328517,1751962238553,-150.0,0.00027147,2]
[370328518,1751962238562,-1313.0,0.00027174,2]
[370328519,1751962238572,-150.0,0.00027182,2]
[370328520,1751962238582,-150.0,0.00027209,2]
[370328521,1751962238592,-150.0,0.00027216,2]
[370328522,1751962238602,-150.0,0.00027223,2]
[370328523,1751962238611,-1719.0,0.00027229,2]
[370328524,1751962238621,-500.0,0.00027229,2]
[370328525,1751962238631,-493.0,0.00027229,2]
[370328526,1751962238644,-500.0,0.00027229,2]
[370328527,1751962238653,-731.0,0.00027229,2]
[370328528,1751962238663,-500.0,0.00027229,2]
[370328529,1751962238673,-655.0,0.00027229,2]
[370328530,1751962238682,-150.0,0.00027243,2]
[370328531,1751962238692,-150.0,0.00027247,2]
[370328532,1751962238701,-150.0,0.00027264,2]
[370328533,1751962238711,-175.63,0.00027278,2]
[370328534,1751962238720,-150.0,0.00027304,2]
[370328535,1751962238729,-666.0,0.00027314,2]
[370328536,1751962238739,-429.43,0.00027325,2]
[370328537,1751962238749,-150.0,0.00027336,2]
[370328538,1751962238759,-150.0,0.00027397,2]
[370328539,1751962238769,-2000.0,0.000274,2]
[370328540,1751962238779,-150.0,0.00027418,2]
[370328541,1751962238788,-150.0,0.0002744,2]
[370328542,1751962238798,-150.82,0.00027461,2]
[370328543,1751962238808,-150.0,0.00027497,2]
[370328544,1751962238817,-1719.0,0.00027503,2]
[370328545,1751962238827,-500.0,0.00027503,2]
[370328546,1751962238836,-493.0,0.00027503,2]
[370328547,1751962238845,-500.0,0.00027503,2]
[370328548,1751962238855,-731.0,0.00027503,2]
[370328549,1751962238864,-500.0,0.00027503,2]
[370328550,1751962238874,-655.0,0.00027503,2]
[370328551,1751962238883,-150.0,0.00027514,2]
[370328552,1751962238893,-150.0,0.00027517,2]
[370328553,1751962238902,-150.0,0.0002753,2]
[370328554,1751962238911,-151.0,0.00027548,2]
[370328555,1751962238920,-150.0,0.00027563,2]
[370328556,1751962238929,-150.0,0.00027568,2]
[370328557,1751962238938,-150.0,0.00027577,2]
[370328558,1751962238948,-150.0,0.00027577,2]
[370328559,1751962238957,-150.0,0.00027582,2]
[370328560,1751962238966,-1641.368908,0.00027586,8]
[370328561,1751962238975,-150.0,0.00027586,2]
[370328562,1751962238984,-150.0,0.00027613,2]
[370328563,1751962238994,-150.0,0.00027614,2]
[370328564,1751962239003,-848.32379613,0.00027624,17]
[370328565,1751962239011,-164.23,0.0002769,2]
[370328566,1751962239021,-150.0,0.00027693,2]
[370328567,1751962239030,-168.0,0.00027699,2]
[370328568,1751962239042,-150.0,0.00027706,2]
[370328569,1751962239052,-150.0,0.00027729,2]
[370328570,1751962239061,-150.0,0.00027746,2]
[370328571,1751962239070,-150.0,0.00027771,2]
[370328572,1751962239082,-1719.0,0.00027777,2]
[370328573,1751962239092,-500.0,0.00027777,2]
[370328574,1751962239101,-493.0,0.00027777,2]
[370328575,1751962239111,-500.0,0.00027777,2]
[370328576,1751962239123,-731.0,0.00027777,2]
[370328577,1751962239135,-500.0,0.00027777,2]
[370328578,1751962239144,-655.0,0.00027777,2]
[370328579,1751962239153,-150.0,0.00027784,2]
[370328580,1751962239163,-1488.0,0.00027791,7]
[370328581,1751962239172,-168.0,0.000278,2]
[370328582,1751962239181,-150.0,0.00027809,2]
[370328583,1751962239190,-150.0,0.0002781,2]
[370328584,1751962239199,-7158.0,0.00027847,2]
[370328585,1751962239209,-859.0,0.00027847,2]
[370328586,1751962239218,-4112.0,0.00027847,2]
[370328587,1751962239227,-754.0,0.00027847,2]
[370328588,1751962239236,-150.0,0.00027893,2]
[370328589,1751962239245,-150.0,0.00027898,2]
[370328590,1751962239254,-150.0,0.00027899,2]
[370328591,1751962239264,-168.0,0.00027907,7]
[370328592,1751962239274,-250.0,0.00027918,2]
[370328593,1751962239283,-150.0,0.00027924,2]
[370328594,1751962239293,-150.0,0.00027952,2]
[370328595,1751962239303,-1488.0,0.00027959,2]
[370328596,1751962239314,-150.0,0.00027981,2]
[370328597,1751962239323,-849.175,0.00028,10]
[370328598,1751962239333,-150.0,0.00028003,2]
[370328599,1751962239343,-150.0,0.00028004,2]
[370328600,1751962239353,-519.0,0.00028023,10]
[370328601,1751962239363,-150.0,0.00028044,2]
[370328602,1751962239374,-1719.0,0.00028051,2]
[370328603,1751962239385,-500.0,0.00028051,2]
[370328604,1751962239394,-493.0,0.00028051,2]
[370328605,1751962239403,-356.879019,0.00028051,2]
[370328606,1751962239412,-731.0,0.00028051,2]
[370328607,1751962239421,-240.96167055,0.00028051,2]
[370328608,1751962239431,-655.0,0.00028051,2]
[370328609,1751962239440,-150.0,0.00028074,2]
[370328610,1751962239449,-150.0,0.00028078,2]
[370328611,1751962239460,-150.0,0.00028106,2]
[370328612,1751962239470,-150.0,0.00028119,2]
[370328613,1751962239479,-150.0,0.00028126,2]
[370328614,1751962239488,-150.0,0.00028133,2]
[370328615,1751962239497,-150.18,0.00028203,2]
[370328616,1751962239507,-200.0,0.00028213,2]
[370328617,1751962239517,-150.0,0.00028216,2]
[370328618,1751962239527,-1000.0,0.00028219,2]
[370328619,1751962239537,-150.0,0.00028237,2]
[370328620,1751962239547,-848.32379613,0.00028245,18]
[370328621,1751962239557,-150.0,0.00028249,2]
[370328622,1751962239566,-150.0,0.00028253,2]
[370328623,1751962239576,-2381.08158207,0.00028264,2]
[370328624,1751962239585,-152.85550246,0.00028269,2]
[370328625,1751962239595,-2500.0,0.00028274,2]
[370328626,1751962239605,-181.33725849,0.00028275,2]
[370328627,1751962239615,-812.60203034,0.00028277,2]
[370328628,1751962239625,-157.62880986,0.00028278,2]
[370328629,1751962239635,-5000.0,0.00028278,2]
[370328630,1751962239644,-2502.0,0.00028281,2]
[370328631,1751962239654,-150.0,0.00028281,2]
[370328632,1751962239663,-150.0,0.00028281,2]
[370328633,1751962239673,-500.0,0.00028281,2]
[370328634,1751962239682,-150.0,0.00028281,2]
[370328635,1751962239692,-457.0,0.00028281,2]
[370328636,1751962239701,-500.0,0.00028281,2]
[370328637,1751962239711,-457.0,0.00028281,2]
[370328638,1751962239720,-150.0,0.00028281,2]
[370328639,1751962239730,-500.0,0.00028281,2]
[370328640,1751962239739,-150.0,0.00028281,2]
[370328641,1751962239748,-150.0,0.00028281,2]
[370328642,1751962239758,-812.60203032,0.00028281,2]
[370328643,1751962239767,-393.98626843,0.00028284,2]
[370328644,1751962239777,-812.60203032,0.00028285,2]
[370328645,1751962239786,-1000.0,0.00028289,2]
[370328646,1751962239800,-150.0,0.00028293,2]
[370328647,1751962239811,-150.0,0.00028295,2]
[370328648,1751962239822,-150.0,0.00028316,2]
[370328649,1751962239832,-152.85550246,0.00028316,2]
[370328650,1751962239842,-1719.0,0.00028325,2]
[370328651,1751962239853,-500.0,0.00028325,2]
[370328652,1751962239863,-493.0,0.00028325,2]
[370328653,1751962239873,-731.0,0.00028325,2]
[370328654,1751962239884,-655.0,0.00028325,2]
[370328655,1751962239896,-168.0,0.00028331,2]
[370328656,1751962239906,-150.0,0.00028335,2]
[370328657,1751962239916,-2381.08158198,0.00028358,2]
[370328658,1751962239926,-152.85550246,0.00028363,2]
[370328659,1751962239937,-35426.94857659,0.00028364,2]
[370328711,1751962240880,-150.0,0.0002696,2]
[370328712,1751962240890,-150.0,0.00027051,2]
[370328713,1751962240901,-150.0,0.00027239,2]
[370328714,1751962240912,-150.0,0.00027381,2]
[370328715,1751962240922,-150.0,0.00027496,2]
[370328716,1751962240932,-150.0,0.0002774,2]
[370328717,1751962240942,-150.0,0.00027913,2]
[370328718,1751962240952,-28310.12459873,0.00028364,2]
[370328719,1751962240975,-1049.82147112,0.00028364,2]
[370328720,1751962241009,-10962.5093555,0.00028364,2]
[370328721,1751962241023,-8812.58930827,0.00028364,2]
[370328722,1751962241037,-1455.51909579,0.00028364,2]
[370328723,1751962241053,-2112.8202746,0.00028364,2]
[370328724,1751962241064,-5378.87942434,0.00028365,2]
[370328725,1751962241077,-8943.78386462,0.00028365,2]
[370328726,1751962241090,-467.07863324,0.00028365,2]
[370328727,1751962241100,-5282.0506865,0.00028365,2]
[370328728,1751962241109,-150.0,0.00028366,2]
[370328729,1751962241119,-3178.41934178,0.00028366,5]
[370328730,1751962241131,-1309.46619013,0.00028366,5]
[370328731,1751962241141,-311.1,0.00028369,2]
[370328732,1751962241151,-215.0738,0.00028369,2]
[370328733,1751962241162,-500.0,0.00028373,5]
[370328734,1751962241172,-500.0,0.00028373,5]
[370328735,1751962241182,-500.0,0.00028373,5]
[370328736,1751962241192,-500.0,0.00028373,5]
[370328737,1751962241202,-500.0,0.00028373,5]
[370328738,1751962241213,-504.52182178,0.00028373,5]
[370328739,1751962241224,-500.0,0.00028373,5]
[370328740,1751962241234,-500.0,0.00028373,5]
[370328741,1751962241244,-500.0,0.00028373,5]
[370328742,1751962241254,-500.0,0.00028373,5]